bitfinex/quotes_BTCUSD_20220111
["timestamp","ask_amount","ask_price","bid_price","bid_amount"]
[1641864785614,0.048,41875.0,41871.0,0.09999999]
[1641864785814,0.05973,41873.0,41871.0,0.09999999]
[1641864786014,0.798,41872.0,41871.0,0.09999999]
[1641864786213,0.848,41872.0,41871.0,0.09999999]
[1641864786417,0.098,41872.0,41871.0,0.09999999]
[1641864786614,0.108,41872.0,41871.0,0.09999999]
[1641864786816,0.058,41872.0,41871.0,0.09999999]
[1641864787815,0.498,41872.0,41871.0,0.09999999]
[1641864788471,0.048,41872.0,41871.0,0.07499999]
[1641864788670,0.058,41872.0,41871.0,0.07499999]
[1641864789871,0.048,41872.0,41871.0,0.07499999]
[1641864790475,0.048,41872.0,41871.0,0.80887783]
[1641864790772,0.048,41872.0,41871.0,0.82287783]
[1641864790773,0.004,41872.0,41871.0,0.82287783]
[1641864791174,0.0236431,41893.0,41873.0,1.05]
[1641864791478,0.001,41907.0,41873.0,1.05]
[1641864791479,1.02193076,41927.0,41888.0,0.00124531]
[1641864791678,0.37451234,41930.0,41892.0,0.18779376]
[1641864791926,0.04987013,41934.0,41892.0,0.18779376]
[1641864791927,1.70228982,41953.0,41930.0,1.35]
[1641864792125,1.70228982,41953.0,41931.0,0.38736444]
[1641864792126,0.078967,41940.0,41931.0,0.38736444]
[1641864792321,0.15982759,41953.0,41952.0,0.07499999]
[1641864792521,0.05963338,41954.0,41952.0,0.07389999]
[1641864792919,1.31541954,41959.0,41952.0,0.07338999]
[1641864792920,0.43417154,41959.0,41952.0,0.07338999]
[1641864793120,0.04593499,41970.0,41952.0,0.30858816]
[1641864793121,0.238542,41968.0,41952.0,0.30858816]
[1641864793320,0.00127712,41980.0,41951.0,0.02801]
[1641864793528,0.01220084,41961.0,41960.0,0.06080733]
[1641864793725,1.21669538,41970.0,41965.0,0.35]
[1641864793726,1.11679538,41970.0,41965.0,0.35]
[1641864793923,0.44052538,41970.0,41969.0,0.82348999]
[1641864794120,0.44052538,41970.0,41969.0,1.12080841]
[1641864794424,0.44052538,41970.0,41969.0,1.82080841]
[1641864794623,0.0165984,41974.0,41969.0,1.22870841]
[1641864794820,0.0165984,41974.0,41973.0,0.88424]
[1641864795023,0.0165984,41974.0,41973.0,0.50677781]
[1641864795222,0.0035799,41983.0,41974.0,0.9]
[1641864795421,0.01168014,41979.0,41977.0,0.72420027]
[1641864795678,0.0035799,41983.0,41978.0,0.37688895]
[1641864795876,0.45919629,41994.0,41982.0,0.07294895]
[1641864796082,0.45919629,41994.0,41980.0,0.059544]
[1641864796083,0.05728494,41993.0,41986.0,0.00128264]
[1641864796276,0.05728494,41993.0,41985.0,0.15]
[1641864796476,0.05414933,41993.0,41986.0,0.5]
[1641864796675,0.28473003,41992.0,41986.0,0.504]
[1641864796907,0.45567787,41987.0,41986.0,0.504]
[1641864797079,0.84034168,41987.0,41986.0,0.00400227]
[1641864797277,0.84034168,41987.0,41972.0,0.07294895]
[1641864797278,0.04389469,41985.0,41972.0,0.07294895]
[1641864797477,0.12839904,41984.0,41975.0,0.00124968]
[1641864797676,0.02705104,41979.0,41967.0,0.1095824]
[1641864797875,0.09398395,41978.0,41969.0,0.00128052]
[1641864798074,0.01963,41976.0,41967.0,0.05]
[1641864798279,0.02705104,41973.0,41967.0,0.05]
[1641864798475,0.13788734,41972.0,41967.0,0.05]
[1641864798676,0.13788734,41972.0,41967.0,0.055]
[1641864799077,0.35054558,41971.0,41967.0,0.055]
[1641864799315,0.36595042,41970.0,41958.0,0.33936444]
[1641864799519,0.03507159,41967.0,41960.0,0.05]
[1641864799721,0.13972975,41966.0,41960.0,0.05]
[1641864799918,0.11642665,41965.0,41960.0,0.05]
[1641864800116,0.09490619,41964.0,41959.0,0.00080631]
[1641864800317,1.59913422,41960.0,41959.0,0.00080631]
[1641864800517,0.8489913,41960.0,41954.0,0.07294895]
[1641864800720,0.39678132,41961.0,41959.0,0.00080625]
[1641864800917,0.048,41960.0,41954.0,0.0687552]
[1641864801318,0.34154803,41955.0,41954.0,0.0687552]
[1641864801520,0.94686727,41955.0,41954.0,0.0687552]
[1641864801720,0.94686727,41955.0,41954.0,0.75107028]
[1641864801721,0.048,41955.0,41954.0,0.75107028]
[1641864801918,0.09217752,41977.0,41954.0,0.75107028]
[1641864801919,0.048,41972.0,41959.0,0.059582]
[1641864802221,0.04920275,41972.0,41955.0,0.40107028]
[1641864802417,0.03902133,41970.0,41955.0,0.40107028]
[1641864802618,0.04920275,41972.0,41959.0,0.007]
[1641864802619,0.25925947,41961.0,41959.0,0.007]
[1641864802817,0.02320275,41972.0,41959.0,0.007]
[1641864802818,0.3716091,41962.0,41959.0,0.007]
[1641864803866,0.00061067,41965.0,41959.0,0.007]
[1641864803867,0.00061067,41965.0,41961.0,0.0687552]
[1641864804071,0.00151478,41971.0,41961.0,0.0687552]
[1641864804072,0.00151478,41971.0,41964.0,0.6402722]
[1641864804265,0.00151478,41971.0,41964.0,0.490653]
[1641864804467,0.00151478,41971.0,41968.0,0.0687552]
[1641864804666,0.00151478,41971.0,41969.0,0.371517]
[1641864805068,0.00151478,41971.0,41967.0,0.05361229]
[1641864805267,0.00151478,41971.0,41964.0,0.006]
[1641864805467,0.03411964,41970.0,41964.0,0.006]
[1641864805668,0.00151478,41971.0,41966.0,0.0687552]
[1641864806070,0.00151478,41971.0,41970.0,0.0687552]
[1641864806268,0.00151478,41971.0,41970.0,0.4402722]
[1641864806568,0.00151478,41971.0,41970.0,0.4902722]
[1641864806835,0.00151478,41971.0,41970.0,0.4982722]
[1641864807034,0.40308135,41972.0,41971.0,0.371517]
[1641864807234,0.40308135,41972.0,41970.0,0.4982722]
[1641864807235,0.40308135,41972.0,41970.0,0.1267552]
[1641864807438,0.40308135,41972.0,41970.0,0.0767552]
[1641864808037,1.08633403,41971.0,41970.0,0.0687552]
[1641864808540,1.08633403,41971.0,41957.0,0.00070978]
[1641864808541,1.4498939,41971.0,41957.0,0.00070978]
[1641864808739,0.04159562,41970.0,41961.0,0.0687552]
[1641864808935,0.04159562,41970.0,41955.0,0.1187552]
[1641864808936,0.048,41969.0,41955.0,0.1187552]
[1641864809136,0.06836694,41972.0,41958.0,1.059584]
[1641864809336,0.31154836,41968.0,41966.0,0.0687552]
[1641864809537,0.31154836,41968.0,41967.0,0.0687552]
[1641864809939,0.38873065,41976.0,41967.0,0.0687552]
[1641864809940,0.09857121,41987.0,41967.0,0.0687552]
[1641864810145,0.0439,41972.0,41966.0,0.09999999]
[1641864810338,0.08387578,41972.0,41970.0,0.0373342]
[1641864810590,1.13434734,41971.0,41970.0,0.0373342]
[1641864810781,0.68434734,41971.0,41970.0,0.0373342]
[1641864812284,0.68434734,41971.0,41958.0,0.33231508]
[1641864812285,1.35,41968.0,41958.0,0.33231508]
[1641864812489,0.2,41966.0,41957.0,0.05]
[1641864812683,0.28595236,41966.0,41957.0,0.05]
[1641864812884,0.2,41964.0,41953.0,0.07150827]
[1641864813084,0.2,41964.0,41946.0,0.0536436]
[1641864813085,0.2,41962.0,41946.0,0.0536436]
[1641864813284,0.34655695,41951.0,41945.0,0.05]
[1641864813485,0.41947695,41951.0,41945.0,0.05]
[1641864813885,0.41947695,41951.0,41946.0,0.00080468]
[1641864814317,0.41947695,41951.0,41947.0,0.05364276]
[1641864814517,0.09,41965.0,41947.0,0.05364276]
[1641864814518,0.0439,41964.0,41955.0,0.63671266]
[1641864814719,0.02713,41969.0,41956.0,0.711453]
[1641864814720,0.00127925,41967.0,41956.0,0.711453]
[1641864814920,0.2,41968.0,41956.0,0.371517]
[1641864815124,0.24784937,41968.0,41957.0,0.00071404]
[1641864815320,0.37504112,41961.0,41957.0,0.00071404]
[1641864815821,0.37504112,41961.0,41958.0,0.05362493]
[1641864816220,0.37504112,41961.0,41959.0,0.371517]
[1641864816624,0.02713,41969.0,41963.0,0.00120432]
[1641864816822,0.02713,41969.0,41967.0,0.37271772]
[1641864817021,0.02713,41969.0,41968.0,0.37824418]
[1641864817221,0.02713,41969.0,41968.0,0.371517]
[1641864817421,0.364224,41977.0,41968.0,0.37721363]
[1641864817624,0.34292653,41973.0,41968.0,0.37721363]
[1641864817822,0.34292653,41973.0,41968.0,0.371517]
[1641864818073,0.34292653,41973.0,41967.0,0.05120072]
[1641864818268,0.34292653,41973.0,41970.0,0.11318019]
[1641864819669,0.34292653,41973.0,41970.0,0.05361319]
[1641864819868,0.34292653,41973.0,41969.0,0.05]
[1641864819869,0.34292653,41973.0,41969.0,0.00077046]
[1641864820272,0.09999999,41986.0,41969.0,0.00077046]
[1641864820568,0.001,41998.0,41969.0,0.00077046]
[1641864820569,0.42983532,41975.0,41969.0,0.00077046]
[1641864820868,0.059575,41997.0,41969.0,0.00077046]
[1641864820869,0.04415059,41983.0,41970.0,0.05361588]
[1641864821069,0.00125412,41986.0,41971.0,0.00122845]
[1641864821271,0.29675526,41979.0,41971.0,0.00122845]
[1641864821821,0.34007736,41975.0,41971.0,0.00122845]
[1641864822022,0.34007736,41975.0,41968.0,0.05]
[1641864822023,0.54007736,41975.0,41968.0,0.04]
[1641864822221,0.29675526,41979.0,41968.0,0.04]
[1641864822423,0.33385292,41980.0,41968.0,0.35734202]
[1641864822824,0.33385292,41980.0,41968.0,0.39234202]
[1641864823023,0.4259049,41970.0,41968.0,0.39234202]
[1641864823323,0.4259049,41970.0,41968.0,0.075]
[1641864823723,0.4259049,41970.0,41968.0,0.1286131]
[1641864824023,0.4259049,41970.0,41969.0,0.361517]
[1641864824223,0.26353166,41976.0,41971.0,0.85180979]
[1641864824423,0.41998646,41974.0,41972.0,0.371517]
[1641864824723,0.41998646,41974.0,41972.0,0.10360768]
[1641864824924,0.00058864,41983.0,41972.0,0.10360768]
[1641864825123,0.00058864,41983.0,41979.0,0.00128609]
[1641864825327,0.00058864,41983.0,41980.0,0.371376]
[1641864825571,0.2,41991.0,41980.0,0.421376]
[1641864825966,0.0005889,41984.0,41980.0,0.421376]
[1641864826367,0.0005889,41984.0,41981.0,0.05955]
[1641864826569,0.0005889,41984.0,41982.0,0.371376]
[1641864826767,0.0005889,41984.0,41980.0,0.005]
[1641864826968,0.2,41985.0,41980.0,0.005]
[1641864827166,0.2,41983.0,41980.0,0.005]
[1641864827367,1.34229868,41981.0,41980.0,0.005]
[1641864827568,2.22871028,41981.0,41980.0,0.005]
[1641864827767,0.8864116,41981.0,41980.0,0.005]
[1641864827970,0.8864116,41981.0,41979.0,0.05361121]
[1641864828167,0.56134864,41980.0,41976.0,0.10721331]
[1641864828369,0.35636464,41980.0,41976.0,0.10721331]
[1641864828568,0.75506563,41981.0,41976.0,0.10721331]
[1641864828769,0.40608668,41981.0,41976.0,0.11021331]
[1641864829516,0.40608668,41981.0,41980.0,9.0]
[1641864829719,0.40608668,41981.0,41980.0,9.05]
[1641864829917,0.60608668,41981.0,41980.0,9.04]
[1641864830117,0.40608668,41981.0,41980.0,9.04]
[1641864830317,0.00051945,41985.0,41980.0,9.411338]
[1641864830521,0.0439,41990.0,41981.0,0.371338]
[1641864830719,0.00051949,41985.0,41980.0,9.04]
[1641864830920,0.2,41982.0,41980.0,9.04]
[1641864831121,0.00051949,41985.0,41981.0,0.371338]
[1641864831319,0.00051949,41985.0,41983.0,0.00127271]
[1641864831519,0.00051949,41985.0,41984.0,0.371338]
[1641864831720,0.04913471,41989.0,41984.0,0.421338]
[1641864831921,0.49982844,41986.0,41985.0,0.05360323]
[1641864832324,0.20051955,41986.0,41985.0,0.05360323]
[1641864832922,0.2,41986.0,41985.0,0.05360323]
[1641864833176,0.2,41986.0,41985.0,0.42494123]
[1641864833574,0.00051956,41988.0,41985.0,0.47494123]
[1641864833872,0.00051956,41988.0,41986.0,0.371338]
[1641864834072,0.27146014,41991.0,41986.0,0.371338]
[1641864834272,0.00051957,41989.0,41985.0,0.10360323]
[1641864834471,0.00051957,41989.0,41986.0,0.371338]
[1641864834673,0.00051957,41989.0,41985.0,0.10360323]
[1641864834873,0.00051957,41989.0,41986.0,0.371338]
[1641864835273,0.021971,41993.0,41986.0,0.371338]
[1641864835274,0.021971,41993.0,41989.0,0.05359957]
[1641864835475,0.00051957,41990.0,41989.0,0.05359957]
[1641864836474,0.021971,41993.0,41989.0,0.05359957]
[1641864836676,0.00051959,41992.0,41989.0,0.05359957]
[1641864836914,0.30848385,41992.0,41989.0,0.05359957]
[1641864837115,0.00051959,41992.0,41989.0,0.05359957]
[1641864837717,0.021971,41993.0,41989.0,0.05359957]
[1641864837915,0.0224906,41993.0,41989.0,0.05359957]
[1641864838320,0.0174906,41993.0,41989.0,0.04300932]
[1641864838918,0.016971,41993.0,41989.0,0.62157534]
[1641864839118,0.0174906,41993.0,41990.0,0.37254905]
[1641864839318,0.0174906,41993.0,41991.0,0.337902]
[1641864839319,0.0124906,41993.0,41991.0,0.337902]
[1641864839518,0.0002881,41994.0,41993.0,0.5012307]
[1641864839718,0.0002881,41994.0,41993.0,1.25417843]
[1641864839919,0.01309003,42008.0,41993.0,1.25417843]
[1641864839920,0.0021,42013.0,41994.0,1.72769781]
[1641864840122,0.0021,42013.0,41999.0,0.10714596]
[1641864840123,0.00069856,42013.0,41999.0,0.10714596]
[1641864840318,0.00069856,42013.0,42011.0,0.00128757]
[1641864840586,0.00069856,42013.0,42012.0,0.26255273]
[1641864840783,0.00053254,42022.0,42013.0,1.22916461]
[1641864840987,0.00053254,42022.0,42018.0,0.00126528]
[1641864841187,0.01032894,42027.0,42022.0,0.36758253]
[1641864841382,0.0011,42030.0,42026.0,0.46868799]
[1641864841582,0.03820243,42036.0,42035.0,0.36525927]
[1641864841783,0.03820243,42036.0,42026.0,0.00129745]
[1641864841983,0.03820243,42036.0,42034.0,0.00126616]
[1641864841984,0.3467406,42035.0,42034.0,0.00126616]
[1641864842185,0.3582016,42035.0,42023.0,0.00129764]
[1641864842385,0.3582016,42035.0,42017.0,0.118991]
[1641864842386,0.04572209,42034.0,42017.0,0.05]
[1641864842589,0.001947,42040.0,42017.0,0.05]
[1641864842590,0.145,42045.0,42032.0,0.0012355]
[1641864842785,0.51373497,42055.0,42039.0,0.00121353]
[1641864842786,0.46865857,42047.0,42039.0,0.00121353]
[1641864842985,0.011461,42046.0,42040.0,0.0039]
[1641864843587,0.011461,42045.0,42040.0,0.00513432]
[1641864843787,0.4400724,42050.0,42045.0,0.00127584]
[1641864843984,0.011461,42049.0,42045.0,0.00127584]
[1641864844184,0.00199948,42051.0,42042.0,0.0039]
[1641864844420,0.03022055,42055.0,42051.0,0.4]
[1641864844622,0.03022055,42055.0,42054.0,0.10567289]
[1641864844820,0.03022055,42055.0,42054.0,0.26280641]
[1641864845018,0.03022055,42055.0,42054.0,0.09999999]
[1641864845221,0.03022055,42055.0,42054.0,0.370689]
[1641864845419,0.03022055,42055.0,42045.0,0.0039]
[1641864845420,0.14982655,42055.0,42045.0,0.0039]
[1641864845620,0.00128261,42054.0,42042.0,0.0489]
[1641864845820,0.30573449,42048.0,42042.0,0.0489]
[1641864846021,0.23126645,42054.0,42042.0,0.0439]
[1641864846226,0.38419537,42047.0,42034.0,0.0039]
[1641864846422,0.059491,42044.0,42034.0,0.0039]
[1641864846623,0.119606,42043.0,42042.0,0.0039]
[1641864846822,0.0002,42060.0,42042.0,0.10518509]
[1641864847022,0.0002,42060.0,42053.0,0.0039]
[1641864847223,0.89507898,42054.0,42048.0,0.00123297]
[1641864847424,0.119606,42053.0,42046.0,0.00053363]
[1641864847623,0.119606,42053.0,42051.0,0.0039]
[1641864847825,0.92832532,42052.0,42051.0,0.0039]
[1641864848072,1.35,42051.0,42046.0,0.00053363]
[1641864848268,1.35,42051.0,42028.0,0.12345999]
[1641864848269,0.119606,42047.0,42028.0,0.12345999]
[1641864848467,0.119606,42047.0,42028.0,0.02346]
[1641864848468,0.3967406,42046.0,42028.0,0.02346]
[1641864848666,0.119606,42045.0,42032.0,0.09999999]
[1641864848869,0.059499,42038.0,42032.0,0.09999999]
[1641864849066,0.41858008,42035.0,42032.0,0.09999999]
[1641864849466,0.119606,42034.0,42032.0,0.09999999]
[1641864849866,0.29309275,42036.0,42032.0,0.09999999]
[1641864850065,0.3967406,42046.0,42035.0,0.09999999]
[1641864850267,0.119606,42040.0,42038.0,0.09999999]
[1641864850466,0.119606,42040.0,42034.0,0.09999999]
[1641864850666,0.07379,42045.0,42039.0,0.09999999]
[1641864850867,0.07379,42045.0,42028.0,0.0651005]
[1641864850868,0.119606,42040.0,42032.0,0.40195563]
[1641864851166,0.32454972,42041.0,42035.0,0.00053245]
[1641864851366,0.119606,42040.0,42035.0,0.00053245]
[1641864851819,0.119606,42040.0,42039.0,0.09999999]
[1641864852020,0.74454972,42041.0,42039.0,0.09999999]
[1641864852220,0.06128,42040.0,42039.0,0.09999999]
[1641864852620,0.40845975,42040.0,42035.0,0.10085582]
[1641864852824,0.41605964,42040.0,42028.0,0.02346]
[1641864853023,0.06128,42034.0,42028.0,0.02346]
[1641864853222,0.06128,42032.0,42028.0,0.02346]
[1641864853423,0.06128,42030.0,42028.0,0.02346]
[1641864853626,0.10518,42029.0,42028.0,0.02346]
[1641864853823,0.56019417,42029.0,42028.0,0.02346]
[1641864854825,0.56419417,42029.0,42028.0,0.02346]
[1641864855224,0.86554688,42029.0,42028.0,0.02346]
[1641864855425,0.86554688,42029.0,42015.0,0.00619928]
[1641864855426,0.38849063,42016.0,42015.0,0.00619928]
[1641864855669,0.38849063,42016.0,42002.0,0.114024]
[1641864855670,0.06128,42016.0,42002.0,0.114024]
[1641864855869,0.06128,42016.0,42005.0,0.00121274]
[1641864856069,0.06128,42016.0,42008.0,0.0833143]
[1641864856267,0.06128,42016.0,42010.0,0.37499255]
[1641864856469,0.42512391,42017.0,42011.0,0.370809]
[1641864856470,0.30256391,42017.0,42011.0,0.370809]
[1641864856668,0.30256391,42017.0,42010.0,0.37499255]
[1641864856872,0.28084347,42016.0,42010.0,0.39399255]
[1641864857069,0.28084347,42016.0,42012.0,0.00085612]
[1641864858071,0.28084347,42016.0,42004.0,0.5]
[1641864858271,0.28084347,42016.0,42012.0,0.00085612]
[1641864858873,0.02379,42015.0,42012.0,0.00185612]
[1641864859313,0.02379,42015.0,42012.0,0.001]
[1641864860218,0.02379,42015.0,42011.0,0.00085613]
[1641864860416,0.02379,42015.0,42005.0,0.37454474]
[1641864860716,0.02879,42015.0,42011.0,0.00185613]
[1641864861717,0.02879,42015.0,42011.0,0.001]
[1641864861917,0.02879,42015.0,42011.0,0.00185614]
[1641864862122,0.02379,42015.0,42012.0,0.370809]
[1641864862317,0.02379,42015.0,42011.0,0.00085614]
[1641864862518,0.0439,42034.0,42012.0,0.870809]
[1641864862719,0.40577702,42025.0,42013.0,0.32657371]
[1641864862918,0.34005192,42021.0,42014.0,0.40224258]
[1641864863173,0.31319874,42024.0,42019.0,0.00085603]
[1641864863574,0.25368474,42024.0,42019.0,0.00085603]
[1641864864173,0.30356482,42023.0,42010.0,0.0428803]
[1641864864373,0.30356482,42023.0,42019.0,0.00085603]
[1641864864576,0.26073239,42022.0,42019.0,0.00085603]
[1641864865376,0.26073239,42022.0,42017.0,0.35049238]
[1641864865577,0.43133271,42027.0,42017.0,0.35049238]
[1641864865578,0.549,42039.0,42022.0,0.00127841]
[1641864865777,0.42,42042.0,42023.0,0.0012882]
[1641864865975,0.42,42042.0,42028.0,0.00128492]
[1641864865976,0.059492,42036.0,42028.0,0.00128492]
[1641864866180,0.42,42041.0,42029.0,0.00736092]
[1641864866377,0.42,42041.0,42029.0,0.00726222]
[1641864866676,0.26923795,42031.0,42030.0,0.0008559]
[1641864866925,0.76923795,42031.0,42030.0,0.0008559]
[1641864867723,0.76923795,42031.0,42029.0,0.002]
[1641864868223,1.74800951,42029.0,42028.0,0.00085592]
[1641864868424,0.44800951,42029.0,42028.0,0.00085592]
[1641864868625,0.87406361,42029.0,42028.0,0.00085592]
[1641864868825,0.93357261,42029.0,42020.0,0.00692222]
[1641864869025,0.34278386,42024.0,42021.0,0.00515376]
[1641864869226,0.34278386,42024.0,42022.0,0.00664842]
[1641864869424,0.059508,42026.0,42022.0,0.00783529]
[1641864869625,0.119021,42031.0,42023.0,0.00508845]
[1641864869827,0.119021,42031.0,42024.0,0.00700572]
[1641864870027,0.05,42034.0,42025.0,0.00628229]
[1641864870226,0.059498,42033.0,42026.0,0.00600852]
[1641864870426,0.24151475,42029.0,42025.0,0.00711201]
[1641864870672,0.24151475,42029.0,42026.0,0.00767033]
[1641864870871,0.24151475,42029.0,42026.0,0.001]
[1641864871074,0.05,42034.0,42028.0,0.00126629]
[1641864871273,0.05,42034.0,42032.0,0.00123034]
[1641864871472,0.05,42034.0,42032.0,0.00683883]
[1641864871672,0.05,42034.0,42033.0,0.00708708]
[1641864871873,0.05,42034.0,42032.0,0.00123034]
[1641864872076,0.28383313,42033.0,42032.0,0.00123034]
[1641864872273,0.05,42034.0,42032.0,0.00122995]
[1641864872873,0.35388728,42041.0,42032.0,0.004]
[1641864873073,0.05,42037.0,42032.0,0.004]
[1641864873275,0.34019576,42035.0,42032.0,0.004]
[1641864873676,0.42550741,42034.0,42032.0,0.004]
[1641864874074,0.42550741,42034.0,42031.0,0.00085588]
[1641864874519,0.7051197,42034.0,42031.0,0.00085588]
[1641864874917,0.7051197,42034.0,42031.0,0.003]
[1641864875317,0.8241267,42034.0,42031.0,0.003]
[1641864875719,0.7051197,42034.0,42031.0,0.003]
[1641864876319,0.42550741,42034.0,42030.0,0.00085589]
[1641864876917,0.42550741,42034.0,42030.0,0.00185589]
[1641864877319,0.42550741,42034.0,42030.0,0.001]
[1641864877520,0.31694928,42033.0,42030.0,0.0018559]
[1641864877823,0.37644728,42033.0,42030.0,0.0018559]
[1641864878081,0.37644728,42033.0,42030.0,0.0008559]
[1641864878478,0.37644728,42033.0,42024.0,0.00127809]
[1641864878679,0.37644728,42033.0,42029.0,0.0008559]
[1641864878880,0.059501,42031.0,42030.0,0.001]
[1641864879078,0.31694928,42033.0,42030.0,0.001]
[1641864879881,1.35,42032.0,42029.0,0.0008559]
[1641864880079,1.46903016,42031.0,42014.0,0.5]
[1641864880284,0.05,42026.0,42015.0,0.32823872]
[1641864880779,0.05,42026.0,42018.0,0.33743528]
[1641864880780,0.74553247,42024.0,42018.0,0.33743528]
[1641864880979,0.05,42026.0,42019.0,0.32823872]
[1641864881182,0.05,42026.0,42025.0,0.33646325]
[1641864881380,0.05,42026.0,42025.0,0.69727225]
[1641864881826,0.05,42026.0,42025.0,1.02551097]
[1641864882026,0.0001,42026.0,42025.0,1.02051097]
[1641864882232,0.059485,42043.0,42026.0,1.271]
[1641864882427,0.059485,42043.0,42030.0,0.00128959]
[1641864882630,0.059485,42043.0,42031.0,0.370809]
[1641864882827,0.32720332,42039.0,42031.0,0.420809]
[1641864883031,0.32720332,42039.0,42031.0,0.05]
[1641864883227,0.41897202,42041.0,42028.0,0.35703547]
[1641864883426,0.30186749,42042.0,42028.0,0.40703547]
[1641864883627,0.00050176,42037.0,42029.0,0.04163963]
[1641864883826,0.00050176,42037.0,42030.0,0.33223237]
[1641864884027,0.00050176,42037.0,42031.0,0.370809]
[1641864884426,0.32596789,42039.0,42031.0,0.370809]
[1641864884627,0.00050176,42036.0,42030.0,0.38223237]
[1641864884827,0.00050176,42036.0,42031.0,0.372809]
[1641864885027,0.05200673,42042.0,42031.0,0.372809]
[1641864885028,0.00200673,42042.0,42032.0,0.35215954]
[1641864885673,0.694861,42052.0,42032.0,0.35215954]
[1641864885871,0.31299591,42040.0,42032.0,0.35215954]
[1641864886073,0.39735008,42044.0,42033.0,0.370809]
[1641864886271,0.39735008,42044.0,42035.0,0.43913]
[1641864886471,0.44735008,42044.0,42035.0,0.43913]
[1641864886671,0.44735008,42044.0,42035.0,0.05]
[1641864886871,0.44735008,42044.0,42035.0,0.053]
[1641864887071,0.30783972,42039.0,42037.0,9.0]
[1641864887271,0.44610534,42044.0,42037.0,9.0]
[1641864887472,0.059485,42042.0,42037.0,9.0]
[1641864888275,0.059492,42040.0,42037.0,9.0]
[1641864888871,0.061492,42040.0,42037.0,9.0]
[1641864889071,0.87302364,42038.0,42037.0,9.0]
[1641864889317,0.92302364,42038.0,42037.0,9.0]
[1641864889518,0.52302364,42038.0,42037.0,9.0]
[1641864890018,0.52302364,42038.0,42024.0,0.57856602]
[1641864890019,1.35,42036.0,42024.0,0.57856602]
[1641864890221,0.00121373,42033.0,42024.0,0.57856602]
[1641864890418,0.00121373,42033.0,42023.0,0.57856602]
[1641864890419,0.059509,42030.0,42023.0,0.57856602]
[1641864891021,0.35708052,42029.0,42021.0,0.26661017]
[1641864891221,0.71218732,42024.0,42021.0,0.26661017]
[1641864891622,0.05,42024.0,42021.0,0.26661017]
[1641864891922,0.11902,42028.0,42021.0,0.26661017]
[1641864892120,0.16902,42028.0,42022.0,0.00632626]
[1641864892321,0.059511,42026.0,42022.0,0.00504137]
[1641864892521,0.30432828,42023.0,42020.0,0.00732465]
[1641864892722,0.30432828,42023.0,42021.0,0.00618245]
[1641864892921,0.059513,42024.0,42022.0,0.00784622]
[1641864893172,0.059513,42024.0,42022.0,0.00903587]
[1641864893476,0.059513,42024.0,42022.0,0.00736983]
[1641864893670,0.059513,42024.0,42022.0,0.002]
[1641864894073,0.059513,42024.0,42012.0,0.57856602]
[1641864894271,0.059513,42024.0,42022.0,0.00669138]
[1641864894471,0.059513,42024.0,42021.0,0.00079946]
[1641864894875,1.35,42023.0,42021.0,0.00079946]
[1641864895076,1.35123802,42023.0,42021.0,0.00079946]
[1641864895277,0.11076202,42023.0,42015.0,0.30084535]
[1641864895474,0.059512,42021.0,42020.0,0.00079948]
[1641864896474,0.059512,42021.0,42007.0,0.78515994]
[1641864896675,0.059517,42018.0,42011.0,0.27014725]
[1641864896919,0.32891817,42017.0,42012.0,0.00601345]
[1641864897119,0.32891817,42017.0,42011.0,0.27728612]
[1641864897320,0.32891817,42017.0,42007.0,0.99478771]
[1641864897524,0.26543536,42015.0,42007.0,0.99478771]
[1641864897722,0.059525,42012.0,42007.0,0.99478771]
[1641864897923,0.37891817,42017.0,42010.0,0.0007996]
[1641864898224,0.05,42017.0,42010.0,0.0007996]
[1641864898424,0.05,42017.0,42010.0,0.29414005]
[1641864898625,0.05,42019.0,42010.0,0.2887289]
[1641864898823,0.28737367,42018.0,42010.0,0.2919293]
[1641864899023,0.28737367,42018.0,42011.0,0.00081463]
[1641864899024,0.39689167,42018.0,42011.0,0.00081463]
[1641864899226,0.39689167,42018.0,42013.0,0.00505103]
[1641864899424,0.36530515,42017.0,42011.0,0.0082434]
[1641864899624,0.36530515,42017.0,42012.0,0.00696854]
[1641864899824,0.36530515,42017.0,42013.0,0.00797867]
[1641864900024,0.34090492,42016.0,42011.0,0.0069791]
[1641864900223,0.34090492,42016.0,42012.0,0.00802492]
[1641864900426,0.059522,42016.0,42013.0,0.00717762]
[1641864900676,0.36530515,42017.0,42012.0,0.00865697]
[1641864900875,0.36530515,42017.0,42013.0,0.00656919]
[1641864901080,0.36530515,42017.0,42012.0,0.01269281]
[1641864901278,0.36530515,42017.0,42013.0,0.00734966]
[1641864901474,0.33778451,42016.0,42013.0,0.00081461]
[1641864901674,0.33778451,42016.0,42013.0,0.00866823]
[1641864901875,0.38778451,42016.0,42013.0,0.00081461]
[1641864902078,0.24493796,42015.0,42005.0,0.00547249]
[1641864902276,0.24493796,42015.0,42001.0,0.57856602]
[1641864902478,1.68698584,42016.0,42001.0,0.57856602]
[1641864902479,0.27551806,42004.0,42001.0,0.57856602]
[1641864902678,0.27551806,42004.0,41997.0,0.57856602]
[1641864902877,0.27551806,42004.0,42003.0,0.00653056]
[1641864903077,0.27551806,42004.0,42003.0,0.00732106]
[1641864903277,0.27551806,42004.0,42001.0,0.003]
[1641864903577,0.78179867,42005.0,42001.0,0.00972168]
[1641864903781,0.78179867,42005.0,42001.0,0.003]
[1641864903978,0.78179867,42005.0,42002.0,0.00638251]
[1641864904177,0.44550112,42005.0,42003.0,0.00643594]
[1641864904422,0.34103753,42009.0,42001.0,0.30350602]
[1641864904622,0.02400159,42012.0,42002.0,0.00667423]
[1641864904824,0.07400159,42012.0,42003.0,0.006]
[1641864905023,0.13353959,42012.0,42003.0,0.01352438]
[1641864905222,0.33514809,42006.0,42003.0,0.00646831]
[1641864905422,0.41212705,42005.0,42003.0,0.00646831]
[1641864905624,0.41212705,42005.0,42003.0,0.01217464]
[1641864905822,0.41212705,42005.0,42003.0,0.00646831]
[1641864906023,0.41212705,42005.0,42002.0,0.00632738]
[1641864906222,0.39596074,42006.0,42002.0,0.00079688]
[1641864906426,0.06081265,42006.0,42003.0,0.00729582]
[1641864906623,0.10954,42006.0,42002.0,0.00738996]
[1641864906823,0.05954,42006.0,42003.0,0.00535895]
[1641864907025,0.07272739,42012.0,42003.0,0.00675984]
[1641864907026,0.02272739,42012.0,42003.0,0.00675984]
[1641864907224,0.02272739,42012.0,42006.0,0.00129495]